fUST/lending_fUST_20251001
["ID","MTS","AMOUNT","RATE_DAILY","PERIOD"]
[388667531,1759312252115,-300.828837,0.00019798,2]
[388667533,1759312252124,-500.0,0.00019798,2]
[388667535,1759312252133,-603.63,0.00019798,2]
[388667537,1759312252142,-500.0,0.00019798,2]
[388667539,1759312252151,-927.91,0.00019798,2]
[388667541,1759312252160,-151.0,0.00019798,2]
[388667543,1759312252169,-151.0,0.00019798,2]
[388667545,1759312252178,-2099.75,0.00019798,2]
[388667547,1759312252187,-500.0,0.00019798,2]
[388667549,1759312252196,-151.0,0.00019798,2]
[388667551,1759312252206,-3491.149292,0.00019798,2]
[388667553,1759312252215,-3491.149292,0.00019798,2]
[388667555,1759312252224,-3491.149292,0.00019798,2]
[388667557,1759312252233,-3491.149292,0.00019798,2]
[388667559,1759312252242,-500.0,0.00019799,2]
[388667561,1759312252250,-2495.81,0.00019799,2]
[388667563,1759312252260,-500.0,0.00019799,2]
[388667565,1759312252270,-2783.69,0.00019799,2]
[388667567,1759312252279,-750.87,0.00019799,2]
[388667569,1759312252288,-2265.48,0.00019799,2]
[388667571,1759312252298,-549.1,0.00019799,2]
[388667573,1759312252308,-151.0,0.000198,2]
[388667575,1759312252317,-151.589051,0.000198,2]
[388667577,1759312252326,-151.0,0.000198,2]
[388667579,1759312252335,-500.0,0.000198,2]
[388667581,1759312252345,-151.0,0.000198,2]
[388667583,1759312252354,-500.0,0.000198,2]
[388667585,1759312252363,-500.0,0.000198,2]
[388667587,1759312252372,-892.58,0.000198,2]
[388667589,1759312252382,-593.97,0.000198,2]
[388667591,1759312252391,-500.0,0.000198,2]
[388667593,1759312252400,-1067.02,0.000198,2]
[388667595,1759312252410,-2800.6,0.000198,2]
[388667597,1759312252419,-500.0,0.000198,2]
[388667599,1759312252428,-500.0,0.000198,2]
[388667601,1759312252437,-404.02029042,0.000198,2]
[388667603,1759312252446,-500.0,0.000198,2]
[388667605,1759312252455,-500.0,0.000198,2]
[388667607,1759312252464,-500.0,0.000198,2]
[388667609,1759312252473,-3830.39,0.000198,2]
[388667611,1759312252482,-500.0,0.000198,2]
[388667613,1759312252491,-500.0,0.000198,2]
[388667615,1759312252500,-866.19,0.000198,2]
[388667617,1759312252509,-888.39,0.000198,2]
[388667619,1759312252519,-151.0,0.000198,2]
[388667622,1759312252529,-500.0,0.000198,2]
[388667623,1759312252539,-500.0,0.000198,2]
[388667626,1759312252548,-500.0,0.000198,2]
[388667628,1759312252557,-1377.42,0.000198,2]
[388667630,1759312252566,-500.0,0.000198,2]
[388667632,1759312252575,-500.0,0.00019802,2]
[388667634,1759312252585,-500.0,0.00019802,2]
[388667636,1759312252594,-705.45,0.00019802,2]
[388667638,1759312252603,-500.0,0.00019802,2]
[388667640,1759312252612,-500.0,0.00019802,2]
[388667642,1759312252621,-500.0,0.00019802,2]
[388667644,1759312252630,-500.0,0.00019802,2]
[388667646,1759312252644,-500.0,0.00019802,2]
[388667648,1759312252653,-594.69,0.00019802,2]
[388667650,1759312252663,-608.58,0.00019802,2]
[388667652,1759312252672,-644.00709932,0.00019802,2]
[388667654,1759312252682,-516.6,0.00019802,2]
[388667656,1759312252691,-1225.05,0.00019802,2]
[388667658,1759312252700,-500.0,0.00019802,2]
[388667660,1759312252711,-500.0,0.00019802,2]
[388667661,1759312252720,-694.7,0.00019802,2]
[388667662,1759312252730,-500.0,0.00019802,2]
[388667663,1759312252739,-160.639848,0.00019803,2]
[388667664,1759312252749,-1000.0,0.00019821,2]
[388667665,1759312252758,-1000.0,0.00019821,2]
[388667666,1759312252767,-1008.08123487,0.00019821,2]
[388667667,1759312252776,-1000.0,0.00019821,2]
[388667668,1759312252786,-1000.0,0.00019821,2]
[388667669,1759312252795,-1000.0,0.00019821,2]
[388667670,1759312252804,-1000.0,0.00019821,2]
[388667671,1759312252813,-1000.0,0.00019821,2]
[388667672,1759312252822,-1000.0,0.00019821,2]
[388667673,1759312252832,-151.7513023,0.00019858,2]
[388667674,1759312252841,-151.5481118,0.00019858,2]
[388667675,1759312252851,-198.72650697,0.00019858,2]
[388667676,1759312252860,-151.0,0.00019858,2]
[388667677,1759312252870,-151.0,0.00019858,2]
[388667678,1759312252879,-500.0,0.00019858,2]
[388667679,1759312252889,-151.29331485,0.00019858,2]
[388667680,1759312252898,-151.10190122,0.00019858,2]
[388667681,1759312252907,-151.58443086,0.00019858,2]
[388667682,1759312252917,-151.0,0.00019858,2]
[388667683,1759312252926,-1000.0,0.00019858,2]
[388667684,1759312252936,-151.0,0.00019858,2]
[388667685,1759312252945,-151.0,0.00019858,2]
[388667686,1759312252954,-151.0,0.00019858,2]
[388667687,1759312252963,-151.0,0.00019858,2]
[388667688,1759312252972,-151.0,0.00019858,2]
[388667689,1759312252981,-151.0,0.00019858,2]
[388667690,1759312252991,-151.0,0.00019858,2]
[388667691,1759312252999,-151.0,0.00019858,2]
[388667692,1759312253008,-170.386274,0.00019858,2]
[388667693,1759312253018,-151.0,0.00019858,2]
[388667694,1759312253027,-151.0,0.00019858,2]
[388667695,1759312253036,-151.0,0.00019858,2]
[388667696,1759312253046,-151.0,0.00019858,2]
[388667697,1759312253055,-152.09874942,0.00019858,2]
[388667698,1759312253064,-152.8314969,0.00019858,2]
[388667699,1759312253073,-151.02852968,0.00019858,2]
[388667700,1759312253083,-151.94531087,0.00019858,2]
[388667701,1759312253093,-151.7712481,0.00019858,2]
[388667702,1759312253102,-152.30040778,0.00019858,2]
[388667703,1759312253111,-151.0,0.00019858,2]
[388667704,1759312253121,-500.0,0.00019858,2]
[388667705,1759312253130,-151.0,0.00019858,2]
[388667706,1759312253140,-151.0,0.000199,2]
[388667707,1759312253149,-151.0,0.000199,2]
[388667708,1759312253158,-176.97330334,0.000199,2]
[388667709,1759312253168,-29534.5060112,0.00019972,2]
[388667710,1759312253177,-500.0,0.00019973,2]
[388667711,1759312253187,-500.0,0.00019973,2]
[388667712,1759312253196,-200.0117218,0.00019973,2]
[388667713,1759312253206,-500.0,0.00019973,2]
[388667714,1759312253215,-500.0,0.00019973,2]
[388667715,1759312253224,-500.0,0.00019973,2]
[388667716,1759312253234,-200.01019671,0.00019973,2]
[388667717,1759312253243,-500.0,0.00019973,2]
[388667718,1759312253252,-500.0,0.00019973,2]
[388667719,1759312253261,-500.0,0.00019973,2]
[388667720,1759312253271,-500.0,0.00019973,2]
[388667721,1759312253281,-200.41102314,0.00019973,2]
[388667722,1759312253289,-500.0,0.00019973,2]
[388667723,1759312253299,-200.01172182,0.00019973,2]
[388667724,1759312253308,-500.0,0.00019973,2]
[388667725,1759312253317,-500.0,0.00019973,2]
[388667726,1759312253326,-200.01019669,0.00019973,2]
[388667727,1759312253336,-200.0117218,0.00019973,2]
[388667728,1759312253345,-256.69308645,0.00019973,2]
[388667729,1759312253355,-500.0,0.00019973,2]
[388667730,1759312253365,-291.0232396,0.00019973,2]
[388667731,1759312253374,-150.40881481,0.00019973,2]
[388667732,1759312253384,-500.0,0.00019973,2]
[388667733,1759312253393,-500.0,0.00019973,2]
[388667734,1759312253402,-500.73488065,0.00019973,2]
[388667735,1759312253412,-506.20201655,0.00019973,2]
[388667736,1759312253421,-500.0,0.00019973,2]
[388667737,1759312253431,-500.0,0.00019973,2]
[388667738,1759312253440,-502.60943045,0.00019973,2]
[388667739,1759312253449,-500.0,0.00019973,2]
[388667740,1759312253458,-500.0,0.00019973,2]
[388667741,1759312253467,-500.0,0.00019973,2]
[388667742,1759312253477,-500.0,0.00019973,2]
[388667743,1759312253486,-500.0,0.00019973,2]
[388667744,1759312253495,-500.0,0.00019973,2]
[388667745,1759312253504,-500.0,0.00019973,2]
[388667746,1759312253514,-500.0,0.00019973,2]
[388667747,1759312253523,-158.96308781,0.00019973,2]
[388667748,1759312253532,-500.0,0.00019973,2]
[388667749,1759312253542,-272.760379,0.00019999,2]
[388667750,1759312253551,-272.760379,0.00019999,7]
[388667751,1759312253560,-500.0,0.0002,2]
[388667752,1759312253570,-20499.54693467,0.0002,2]
[388667753,1759312253580,-500.0,0.0002,2]
[388667754,1759312253589,-151.0,0.0002,2]
[388667755,1759312253598,-500.0,0.0002,2]
[388667756,1759312253608,-500.0,0.0002,2]
[388667757,1759312253617,-500.0,0.0002,2]
[388667758,1759312253628,-500.0,0.0002,2]
[388667759,1759312253642,-577.01,0.0002,2]
[388667760,1759312253651,-2807.49,0.0002,2]
[388667761,1759312253660,-500.0,0.0002,2]
[388667762,1759312253670,-151.0,0.0002,2]
[388667763,1759312253681,-500.0,0.0002,2]
[388667764,1759312253691,-500.0,0.0002,2]
[388667765,1759312253700,-1806.42,0.0002,2]
[388667766,1759312253710,-151.0,0.0002,2]
[388667767,1759312253719,-1024.64,0.0002,2]
[388667768,1759312253729,-500.0,0.0002,2]
[388667769,1759312253739,-518.19,0.0002,2]
[388667770,1759312253749,-637.7259093,0.0002,2]
[388667771,1759312253759,-500.0,0.0002,2]
[388667772,1759312253769,-500.0,0.0002,2]
[388667773,1759312253779,-1487.26,0.0002,2]
[388667774,1759312253789,-151.0,0.0002,2]
[388667775,1759312253798,-1559.42,0.0002,2]
[388667776,1759312253808,-500.0,0.0002,2]
[388667777,1759312253959,-500.0,0.0002,2]
[388667778,1759312253969,-1096.91,0.0002,2]
[388667779,1759312253979,-500.0,0.0002,2]
[388667780,1759312253988,-500.0,0.0002,2]
[388667781,1759312253997,-500.0,0.0002,2]
[388667782,1759312254006,-849.85,0.0002,2]
[388667783,1759312254015,-500.0,0.0002,2]
[388667784,1759312254024,-500.0,0.0002,2]
[388667785,1759312254034,-500.0,0.0002,2]
[388667786,1759312254043,-500.0,0.0002,2]
[388667787,1759312254052,-2805.82,0.0002,2]
[388667788,1759312254062,-663.37,0.0002,2]
[388667789,1759312254071,-500.0,0.0002,2]
[388667790,1759312254080,-500.0,0.0002,2]
[388667791,1759312254090,-500.0,0.0002,2]
[388667792,1759312254099,-1026.72,0.0002,2]
[388667793,1759312254108,-500.0,0.0002,2]
[388667794,1759312254117,-4322.32,0.0002,2]
[388667795,1759312254127,-2315.28,0.0002,2]
[388667796,1759312254136,-2260.74,0.0002,2]
[388667797,1759312254145,-500.0,0.0002,2]
[388667798,1759312254155,-2875.66,0.0002,2]
[388667799,1759312254165,-500.0,0.0002,2]
[388667800,1759312254174,-500.0,0.0002,2]
[388667801,1759312254184,-787.14,0.0002,2]
[388667802,1759312254193,-500.0,0.0002,2]
[388667803,1759312254202,-2009.06,0.0002,2]
[388667804,1759312254213,-831.98,0.0002,2]
[388667805,1759312254222,-4247.17,0.0002,2]
[388667806,1759312254231,-515.83,0.0002,2]
[388667807,1759312254240,-525.38,0.0002,2]
[388667808,1759312254250,-500.0,0.0002,2]
[388667809,1759312254259,-782.85,0.0002,2]
[388667810,1759312254268,-500.0,0.0002,2]
[388667811,1759312254278,-5080.75,0.0002,2]
[388667812,1759312254287,-500.0,0.0002,2]
[388667813,1759312254296,-251.81219487,0.0002,2]
[388667814,1759312254306,-500.0,0.0002,2]
[388667815,1759312254316,-484.08200638,0.0002,2]
[388667816,1759312254325,-500.0,0.0002,2]
[388667817,1759312254334,-1079.71,0.0002,2]
[388667818,1759312254343,-1855.28,0.0002,2]
[388667819,1759312254352,-1068.63,0.0002,2]
[388667820,1759312254361,-500.0,0.0002,2]
[388667821,1759312254370,-713.39,0.0002,2]
[388667822,1759312254380,-1038.31,0.0002,2]
[388667823,1759312254390,-2455.42,0.0002,2]
[388667824,1759312254400,-783.54,0.0002,2]
[388667825,1759312254409,-925.1,0.0002,2]
[388667826,1759312254418,-515.04,0.0002,2]
[388667827,1759312254428,-2258.24,0.0002,2]
[388667828,1759312254437,-500.0,0.0002,2]
[388667829,1759312254446,-14187.97,0.0002,2]
[388667830,1759312254455,-846.91,0.0002,2]
[388667831,1759312254465,-182.87169423,0.0002,2]
[388667832,1759312254474,-610.97,0.0002,2]
[388667833,1759312254483,-500.0,0.0002,2]
[388667835,1759312254492,-1832.46,0.0002,2]
[388667837,1759312254501,-1495.65,0.0002,2]
[388667839,1759312254510,-500.0,0.0002,2]
[388667841,1759312254519,-1664.66,0.0002,2]
[388667842,1759312254528,-500.0,0.0002,2]
[388667844,1759312254538,-500.0,0.0002,2]
[388667846,1759312254547,-2434.33,0.0002,2]
[388667847,1759312254556,-1345.6,0.0002,2]
[388667849,1759312254567,-1988.74,0.0002,2]
[388667851,1759312254576,-1494.18,0.0002,2]
[388667852,1759312254585,-500.0,0.0002,2]
[388667854,1759312254595,-740.91,0.0002,2]
[388667856,1759312254605,-500.0,0.0002,2]
[388667858,1759312254614,-2157.86,0.0002,2]
[388667860,1759312254623,-500.0,0.0002,2]
[388667862,1759312254633,-740.79,0.0002,2]
[388667865,1759312254651,-1666.12,0.0002,2]
[388667867,1759312254660,-1456.34,0.0002,2]
[388667869,1759312254670,-500.0,0.0002,2]
[388667871,1759312254679,-500.0,0.0002,2]
[388667873,1759312254688,-1732.52,0.0002,2]
[388667875,1759312254697,-1269.88,0.0002,2]
[388667876,1759312254706,-2150.38,0.0002,2]
[388667878,1759312254715,-5567.8,0.0002,2]
[388667880,1759312254723,-500.0,0.0002,2]
[388667882,1759312254733,-500.0,0.0002,2]
[388667884,1759312254742,-3321.43,0.0002,2]
[388667886,1759312254752,-500.0,0.0002,2]
[388667888,1759312254761,-500.0,0.0002,2]
[388667890,1759312254770,-2282.82,0.0002,2]
[388667892,1759312254780,-383.89819756,0.0002,2]
[388667894,1759312254789,-500.0,0.0002,2]
[388667896,1759312254800,-760.17,0.0002,2]
[388667898,1759312254809,-1952.05,0.0002,2]
[388667900,1759312254819,-696.85,0.0002,2]
[388667902,1759312254828,-500.0,0.0002,2]
[388667904,1759312254837,-500.0,0.0002,2]
[388667906,1759312254846,-802.72,0.0002,2]
[388667908,1759312254855,-500.0,0.0002,2]
[388667910,1759312254864,-2899.74,0.0002,2]
[388667912,1759312254874,-2537.09,0.0002,2]
[388667914,1759312254883,-500.0,0.0002,2]
[388667916,1759312254892,-500.0,0.0002,2]
[388667918,1759312254901,-2171.05,0.0002,2]
[388667920,1759312254910,-1943.0,0.0002,2]
[388667922,1759312254919,-500.0,0.0002,2]
[388667923,1759312254928,-151.0,0.0002,2]
[388667925,1759312254937,-500.0,0.0002,2]
[388667926,1759312254946,-697.22,0.0002,2]
[388667927,1759312254956,-725.54,0.0002,2]
[388667928,1759312254966,-151.0,0.0002,2]
[388667929,1759312254975,-1850.45,0.0002,2]
[388667930,1759312254985,-151.0,0.0002,2]
[388667931,1759312254994,-2130.13,0.0002,2]
[388667932,1759312255003,-500.0,0.0002,2]
[388667933,1759312255012,-500.0,0.0002,2]
[388667934,1759312255023,-1234.48,0.0002,2]
[388667935,1759312255032,-1529.22,0.0002,2]
[388667936,1759312255041,-4000.0,0.0002,4]
[388667938,1759312255050,-500.0,0.0002,2]
[388667940,1759312255059,-1379.5,0.0002,2]
[388667941,1759312255069,-6327.18,0.0002,2]
[388667942,1759312255077,-577.05231505,0.0002,2]
[388667944,1759312255087,-871.03,0.0002,2]
[388667946,1759312255096,-642.87530596,0.0002,2]
[388667947,1759312255105,-601.55,0.0002,2]
[388667948,1759312255114,-500.0,0.0002,2]
[388667950,1759312255124,-2601.62,0.0002,2]
[388667952,1759312255133,-5343.87,0.0002,2]
[388667954,1759312255143,-1867.26,0.0002,2]
[388667956,1759312255152,-161.121168,0.0002,2]
[388667958,1759312255161,-151.0,0.0002,2]
[388667960,1759312255170,-973.06,0.0002,2]
[388667962,1759312255179,-164.724016,0.0002,2]
[388667964,1759312255188,-3491.149292,0.0002,2]
[388667966,1759312255200,-3491.149292,0.0002,2]
[388667968,1759312255220,-2247.22,0.0002,2]
[388667970,1759312255231,-3491.149292,0.0002,2]
[388667971,1759312255241,-198.63045716,0.00020033,2]
[388667972,1759312255251,-793.7273068,0.00020033,2]
[388667973,1759312255260,-176.51760502,0.00020033,2]
[388667974,1759312255269,-705.36434965,0.00020033,2]
[388667975,1759312255278,-302.3420713,0.00020033,2]
[388667976,1759312255287,-168.87826326,0.00020034,2]
[388667977,1759312255296,-674.83754,0.00020034,2]
[388667978,1759312255306,-674.63815419,0.00020034,2]
[388667979,1759312255315,-2695.85406413,0.00020034,2]
[388667980,1759312255325,-243.6127908,0.00020034,2]
[388667981,1759312255334,-500.0,0.0002006,2]
[388667982,1759312255344,-252.697,0.00020071,2]
[388667983,1759312255353,-500.0,0.00020072,2]
[388667984,1759312255363,-500.0,0.00020072,2]
[388667985,1759312255372,-500.0,0.00020072,2]
[388667986,1759312255381,-309.82096251,0.00020072,2]
[388667987,1759312255390,-500.0,0.00020072,2]
[388667988,1759312255400,-500.0,0.00020072,2]
[388667989,1759312255409,-500.0,0.00020072,2]
[388667990,1759312255419,-500.0,0.00020072,2]
[388667991,1759312255428,-616.81,0.00020072,2]
[388667992,1759312255438,-500.0,0.00020072,2]
[388667993,1759312255447,-738.24,0.00020072,2]
[388667994,1759312255456,-500.0,0.00020072,2]
[388667995,1759312255465,-500.0,0.00020072,2]
[388667996,1759312255474,-909.66,0.00020072,2]
[388667997,1759312255484,-944.45,0.00020072,2]
[388667998,1759312255493,-500.0,0.00020072,2]
[388667999,1759312255502,-500.0,0.00020072,2]
[388668000,1759312255511,-500.0,0.00020072,2]
[388668001,1759312255521,-500.0,0.00020072,2]
[388668002,1759312255530,-1009.55,0.00020072,2]
[388668003,1759312255540,-463.92234568,0.00020072,2]
[388668004,1759312255549,-500.0,0.00020072,2]
[388668005,1759312255558,-541.49,0.00020072,2]
[388668006,1759312255567,-672.84,0.00020072,2]
[388668007,1759312255576,-1013.88,0.00020072,2]
[388668008,1759312255586,-500.0,0.00020072,2]
[388668009,1759312255595,-500.0,0.00020072,2]
[388668010,1759312255604,-881.39,0.00020072,2]
[388668011,1759312255613,-1144.2,0.00020072,2]
[388668012,1759312255622,-1042.98,0.00020072,2]
[388668013,1759312255632,-500.0,0.00020072,2]
[388668014,1759312255646,-500.0,0.00020072,2]
[388668015,1759312255655,-951.18,0.00020072,2]
[388668016,1759312255665,-597.61,0.00020072,2]
[388668017,1759312255674,-500.0,0.00020072,2]
[388668018,1759312255686,-2767.55,0.00020072,2]
[388668019,1759312255695,-500.0,0.00020072,2]
[388668020,1759312255706,-1601.15,0.00020072,2]
[388668021,1759312255719,-500.0,0.00020072,2]
[388668022,1759312255728,-1303.62,0.00020072,2]
[388668023,1759312255738,-880.42,0.00020072,2]
[388668024,1759312255748,-500.0,0.00020072,2]
[388668025,1759312255758,-500.0,0.00020072,2]
[388668026,1759312255769,-500.0,0.00020072,2]
[388668027,1759312255778,-500.0,0.00020072,2]
[388668028,1759312255787,-500.0,0.00020072,2]
[388668029,1759312255797,-500.0,0.00020072,2]
[388668030,1759312255806,-500.0,0.00020072,2]
[388668031,1759312255815,-500.0,0.00020072,2]
[388668032,1759312255824,-454.6416581,0.00020072,2]
[388668033,1759312255834,-3069.98,0.00020072,2]
[388668034,1759312255844,-1087.79,0.00020072,2]
[388668035,1759312255853,-500.0,0.00020072,2]
[388668036,1759312255862,-979.6,0.00020072,2]
[388668037,1759312255872,-500.0,0.00020072,2]
[388668038,1759312255881,-1319.57,0.00020072,2]
[388668039,1759312255890,-521.88,0.00020072,2]
[388668040,1759312255899,-500.0,0.00020072,2]
[388668041,1759312255909,-585.57,0.00020072,2]
[388668042,1759312255919,-697.73,0.00020072,2]
[388668043,1759312255928,-500.0,0.00020072,2]
[388668044,1759312255939,-500.0,0.00020072,2]
[388668045,1759312255948,-500.0,0.00020072,2]
[388668046,1759312255958,-1230.61,0.00020072,2]
[388668047,1759312255968,-500.0,0.00020072,2]
[388668048,1759312255977,-500.0,0.00020072,2]
[388668049,1759312255986,-500.0,0.00020072,2]
[388668050,1759312255995,-1132.62,0.00020072,2]
[388668051,1759312256005,-500.0,0.00020072,2]
[388668052,1759312256014,-3998.84,0.00020072,2]
[388668053,1759312256024,-1016.78,0.00020072,2]
[388668054,1759312256034,-500.0,0.00020072,2]
[388668055,1759312256043,-500.0,0.00020072,2]
[388668056,1759312256052,-500.0,0.00020072,2]
[388668057,1759312256061,-1071.56,0.00020072,2]
[388668058,1759312256070,-1000.0,0.00020072,2]
[388668059,1759312256080,-500.0,0.00020072,2]
[388668060,1759312256089,-352.57946058,0.00020072,2]
[388668061,1759312256098,-500.0,0.00020072,2]
[388668062,1759312256107,-830.91,0.00020072,2]
[388668063,1759312256117,-500.0,0.00020072,2]
[388668064,1759312256126,-252.60158982,0.00020072,2]
[388668065,1759312256136,-500.0,0.00020072,2]
[388668066,1759312256145,-500.0,0.00020072,2]
[388668067,1759312256154,-525.5,0.00020072,2]
[388668068,1759312256163,-500.0,0.00020072,2]
[388668069,1759312256172,-603.63,0.00020072,2]
[388668070,1759312256181,-500.0,0.00020072,2]
[388668071,1759312256190,-927.91,0.00020072,2]
[388668072,1759312256199,-2099.75,0.00020072,2]
[388668073,1759312256209,-500.0,0.00020072,2]
[388668074,1759312256218,-553.47499876,0.00020073,2]
[388668075,1759312256227,-500.0,0.00020073,2]
[388668076,1759312256236,-500.0,0.00020073,2]
[388668077,1759312256245,-500.0,0.00020073,2]
[388668078,1759312256254,-500.0,0.00020073,2]
[388668079,1759312256263,-500.0,0.00020073,2]
[388668080,1759312256272,-151.0,0.00020073,2]
[388668081,1759312256281,-151.0,0.00020073,2]
[388668082,1759312256290,-151.0,0.00020073,2]
[388668083,1759312256300,-186.096365,0.00020073,2]
[388668084,1759312256309,-151.0,0.00020073,2]
[388668085,1759312256318,-2495.81,0.00020073,2]
[388668086,1759312256327,-425.79536773,0.00020073,2]
[388668087,1759312256336,-2783.69,0.00020073,2]
[388668088,1759312256346,-750.87,0.00020073,2]
[388668089,1759312256355,-2265.48,0.00020073,2]
[388668090,1759312256364,-549.1,0.00020073,2]
[388668091,1759312256373,-312.3433073,0.00020074,2]
[388668092,1759312256382,-500.0,0.00020074,2]
[388668093,1759312256392,-500.0,0.00020074,2]
[388668094,1759312256401,-500.0,0.00020074,2]
[388668095,1759312256410,-892.58,0.00020074,2]
[388668096,1759312256419,-593.97,0.00020074,2]
[388668097,1759312256429,-500.0,0.00020074,2]
[388668098,1759312256438,-1067.02,0.00020074,2]
[388668099,1759312256447,-2800.6,0.00020074,2]
[388668100,1759312256456,-153.889899,0.00020074,2]
[388668101,1759312256465,-500.0,0.00020074,2]
[388668102,1759312256475,-500.0,0.00020074,2]
[388668103,1759312256484,-500.0,0.00020074,2]
[388668104,1759312256494,-500.0,0.00020074,2]
[388668105,1759312256504,-500.0,0.00020074,2]
[388668106,1759312256513,-3830.39,0.00020074,2]
[388668107,1759312256523,-500.0,0.00020074,2]
[388668108,1759312256532,-500.0,0.00020074,2]
[388668109,1759312256542,-866.19,0.00020074,2]
[388668110,1759312256551,-888.39,0.00020074,2]
[388668111,1759312256560,-500.0,0.00020074,2]
[388668112,1759312256569,-500.0,0.00020074,2]
[388668113,1759312256579,-500.0,0.00020074,2]
[388668114,1759312256588,-1377.42,0.00020074,2]
[388668115,1759312256597,-424.82415666,0.00020074,2]
[388668116,1759312256607,-500.0,0.00020076,2]
[388668117,1759312256616,-442.71822724,0.00020076,2]
[388668118,1759312256625,-705.45,0.00020076,2]
[388668119,1759312256636,-500.0,0.00020076,2]
[388668120,1759312256647,-500.0,0.00020076,2]
[388668121,1759312256656,-500.0,0.00020076,2]
[388668122,1759312256665,-563.97291868,0.00020076,2]
[388668123,1759312256674,-594.69,0.00020076,2]
[388668124,1759312256685,-608.58,0.00020076,2]
[388668125,1759312256700,-516.6,0.00020076,2]
[388668126,1759312256709,-1225.05,0.00020076,2]
[388668127,1759312256718,-500.0,0.00020076,2]
[388668128,1759312256730,-500.0,0.00020076,2]
[388668129,1759312256747,-694.7,0.00020076,2]
[388668130,1759312256756,-3000.0,0.00020088,2]
[388668131,1759312256766,-1000.0,0.00020121,2]
[388668132,1759312256776,-532.04413986,0.00020121,2]
[388668133,1759312256785,-1000.0,0.00020121,2]
[388668134,1759312256794,-198.0,0.00020132,2]
[388668135,1759312256804,-246.95210255,0.00020132,2]
[388668136,1759312256814,-548.14163582,0.00020132,2]
[388668137,1759312256822,-151.0,0.00020132,2]
[388668138,1759312256831,-1000.0,0.00020132,2]
[388668139,1759312256841,-151.0,0.00020132,2]
[388668140,1759312256850,-151.0,0.00020132,2]
[388668141,1759312256859,-151.0,0.00020132,2]
[388668142,1759312256868,-151.0,0.00020132,2]
[388668143,1759312256877,-151.0,0.00020132,2]
[388668144,1759312256887,-151.0,0.00020132,2]
[388668145,1759312256895,-500.0,0.00020132,2]
[388668146,1759312256905,-151.0,0.00020132,2]
[388668147,1759312256914,-151.0,0.00020132,2]
[388668148,1759312257049,-151.0,0.00020132,2]
[388668149,1759312257058,-500.0,0.00020273,2]
[388668150,1759312257068,-500.0,0.00020273,2]
[388668151,1759312257077,-500.0,0.00020273,2]
[388668152,1759312257087,-500.0,0.00020273,2]
[388668153,1759312257096,-500.0,0.00020273,2]
[388668154,1759312257106,-577.01,0.00020273,2]